Cogmind - Beta 16 @@@ ROGUE MODE // 2026.01.02 @ 23:43:47 Player: cromly Result: Destroyed by G-47 Trooper with Particle Gun Performance ------------- Evolutions (2) 1000 Regions Visited (5) 1000 Robots Destroyed (13) 65 Value Destroyed (334) 334 Prototype IDs (4) 80 Alien Tech Used (0) 0 Bonus (700) 700 TOTAL SCORE: 3179 Bonus ------- Entered Garrisons 200 Used RIF Installer 500 Cogmind --------- Core Integrity 0/550 Matter 118/300 Energy 19/290 System Corruption 0% Temperature Cool (10) Movement Treading (160) Location -8/Materials Parts ------- > --- POWER (2) -------- Reinforced Deuterium Engine > --- PROPULSION (5) --- Improved Treads Improved VTOL Module > --- UTILITY (2) ------ Weight Redist. System Shield Generator > --- WEAPON (2) ------- (None) > --- INVENTORY (5) ---- (None) Peak State ------------ > --- POWER ------------ Reinforced Deuterium Engine Reinforced Deuterium Engine > --- PROPULSION ------- Airjet Flight Unit Cesium-ion Thruster Improved VTOL Module Xenon Bombardment Thruster > --- UTILITY ---------- Heat Sink Weight Redist. System > --- WEAPON ----------- Light Assault Rifle Heavy Assault Rifle > --- INVENTORY -------- Reinforced Deuterium Engine Reinforced Deuterium Engine Flight Unit Structural Scanner Shield Generator [Rating: 30] Favorites ----------- Power Reinforced Deuterium Engine Engine Reinforced Deuterium Engine Power Core Light Nuclear Core Propulsion Flight Unit Treads Improved Treads Hover Unit Airjet Flight Unit Flight Unit Utility Heat Sink Device Heat Sink Storage Small Storage Unit Protection Makeshift Kinetic Plating Weapon Light Assault Rifle Energy Gun Small Laser Energy Cannon Improved EM Pulse Cannon Ballistic Gun Light Assault Rifle Build | -11 -10 -10 -8 -8 -8 ------- Run | Yrd Mat Sub Mat Gar Mat Slots Evolved 4 | . . . 4 . . Power 1 | . . . 1 . . Propulsion 3 | . . . 3 . . Utility . | . . . . . . Weapon . | . . . . . . Parts Attached 48 | 6 4 4 17 . 17 Power 10 | 1 1 . 2 . 6 Engine 7 | 1 1 . . . 5 Core 3 | . . . 2 . 1 Reactor . | . . . . . . Propulsion 22 | 2 2 2 10 . 6 Treads 6 | 2 . . . . 4 Leg . | . . . . . . Wheel . | . . . . . . Hover 1 | . . . . . 1 Flight 15 | . 2 2 10 . 1 Utility 8 | 1 1 1 3 . 2 Device 6 | . 1 . 3 . 2 Storage 1 | 1 . . . . . Processor . | . . . . . . Hackware . | . . . . . . Protection 1 | . . 1 . . . Artifact . | . . . . . . Weapon 8 | 2 . 1 2 . 3 Energy Gun 1 | 1 . . . . . Energy Cannon 1 | . . . 1 . . Ballistic Gun 6 | 1 . 1 1 . 3 Ballistic Cannon . | . . . . . . Launcher . | . . . . . . Special Weapon . | . . . . . . Impact Weapon . | . . . . . . Slashing Weapon . | . . . . . . Piercing Weapon . | . . . . . . Special Melee Weapon . | . . . . . . Unidentified Prototypes 2 | . . . . . 2 Parts Lost 24 | . . 1 7 1 15 Power 6 | . . . 2 . 4 Propulsion 12 | . . 1 4 1 6 Utility 2 | . . . 1 . 1 Weapon 4 | . . . . . 4 Highest Loss Streak 14 | . . 1 3 1 14 To Critical Strikes . | . . . . . . Average Backups 3 | . 4 4 2 2 4 Power . | . 1 1 . . 1 Propulsion 1 | . 2 2 1 . . Utility . | . . . . 1 2 Weapon . | . 1 . . 1 . Tool/Special . | . . . . . . Unused Backups 2 | . . 1 . . 1 Power . | . . . . . . Propulsion . | . . . . . . Utility 1 | . . . . . 1 Weapon 1 | . . 1 . . . Tool/Special . | . . . . . . Average Slot Usage (%) 77 | . 85 91 64 90 74 Engine 9 | . 14 14 9 . 8 Core 3 | . . . . 18 5 Treads 3 | . 11 . . . 5 Flight 29 | . 16 25 35 45 28 Device 12 | . 7 14 8 18 14 Protection 1 | . . 9 . . . Energy Gun 2 | . 14 2 . . . Ballistic Gun 13 | . 14 24 9 9 11 Peak Build Rating 30 | 6 6 13 27 22 30 Average Rating 15 | 4 5 11 14 21 21 On Entrance 9 | . 6 6 5 22 18 Avg Prop Armor Cover (%) 1 | . . . . . 1 Naked Turns . | . . . . . . Heaviest Build 35 | 13 13 17 15 15 35 Greatest Support 75 | 40 40 8 29 25 75 Greatest Overweight (x) 4 | . . 4 1 . 1 Average Overweight (x) . | . . . . . . Largest Inventory Capacity 8 | 8 8 5 5 5 5 Average Capacity 5 | 7 6 5 5 5 5 Most Carried 7 | 2 7 5 5 2 5 Average Carried 3 | 1 4 4 2 2 3 Final Capacity 8 | 8 5 5 5 5 5 Final Carried 5 | 2 5 4 2 2 . Class Distribution -------------------- 57% | Mutant 22% | Scavenger-Sprinter 20% | Sprinter Dominant Class ---------------- Mutant | -10/Materials Mutant | -10/Subcaves Mutant | -8/Materials Scavenger-Sprinter | -8/Garrison Mutant | -8/Materials Resources | -11 -10 -10 -8 -8 -8 ----------- Run | Yrd Mat Sub Mat Gar Mat Matter Collected 618 | 174 116 91 194 . 43 Remotely . | . . . . . . Salvage Created 398 | . . 104 236 . 58 Parts 32 | . . 7 15 . 10 Haulers Intercepted . | . . . . . . Recyclers Shooed . | . . . . . . Parts Field Recycled . | . . . . . . Retrieved Matter . | . . . . . . Parts Self-Destructed . | . . . . . . Prevented . | . . . . . . Parts Restored . | . . . . . . Kills | -11 -10 -10 -8 -8 -8 ------- Run | Yrd Mat Sub Mat Gar Mat Combat Hostiles Destroyed 13 | . . 2 7 . 4 Guns 13 | . . 2 7 . 4 Classes Destroyed 4 | . . 1 3 . . Swarmer 7 | . . . 3 . 4 Grunt 2 | . . . 2 . . Sentry 2 | . . . 2 . . Subdweller 2 | . . 2 . . . Best Kill Streak 4 | . . 2 4 . 4 Combat Bots Only 4 | . . 2 4 . 4 Max Kills in Single Turn 1 | . . 1 1 . 1 Gunslinging . | . . . . . . Exploded . | . . . . . . Melee . | . . . . . . Uniques/NPCs Destroyed . | . . . . . . Combat | -11 -10 -10 -8 -8 -8 -------- Run | Yrd Mat Sub Mat Gar Mat Hostile Shots Fired 360 | . 3 18 71 12 256 Missed 99 | . 2 3 30 5 59 Hits 261 | . 1 15 41 7 197 Projectile 261 | . 1 15 41 7 197 Critical Strikes 8 | . . . 5 . 3 Damage Taken 2754 | . 7 288 540 75 1844 Core 566 | . . 14 149 13 390 Absorbed by Shields 112 | . . . . 17 95 Ignored by Resistances 24 | . . 24 . . . Core Remaining (%) 97 | 100 . 94 . . . Volleys Fired 78 | . . 6 47 . 25 Largest 2 | . . 2 1 . 2 Hottest 53 | . . 53 20 . 43 Shots Fired 90 | . . 12 47 . 31 Gun 90 | . . 12 47 . 31 Cannon . | . . . . . . Launcher . | . . . . . . Special . | . . . . . . Kinetic 90 | . . 12 47 . 31 Thermal . | . . . . . . Explosive . | . . . . . . Electromagnetic . | . . . . . . Robot Hit Streak 29 | . . 4 28 . 29 Robot Miss Streak 3 | . . 1 3 . 3 Penetration Max . | . . . . . . Secondary Targets . | . . . . . . Shots Hit Robots 67 | . . 9 40 . 18 Core Hits 26 | . . 3 18 . 5 Critical Kills . | . . . . . . Critical Parts Destroyed . | . . . . . . Critical Strikes . | . . . . . . Melee Attacks . | . . . . . . Impact . | . . . . . . Slashing . | . . . . . . Piercing . | . . . . . . Sneak Attacks . | . . . . . . Combat Hostiles . | . . . . . . Follow-up Attacks . | . . . . . . Damage Inflicted 737 | . . 161 345 . 231 Guns 737 | . . 161 345 . 231 Cannons . | . . . . . . Explosions . | . . . . . . Melee . | . . . . . . Ramming . | . . . . . . Kinetic 737 | . . 161 345 . 231 Thermal . | . . . . . . Explosive . | . . . . . . Electromagnetic . | . . . . . . Impact . | . . . . . . Slashing . | . . . . . . Piercing . | . . . . . . Highest Corruption . | . . . . . . Average Corruption . | . . . . . . Corruption Purged . | . . . . . . Corruption Blocked . | . . . . . . Overload Shots . | . . . . . . Overflow Damage . | . . . . . . Projectiles . | . . . . . . Explosions . | . . . . . . Melee . | . . . . . . Knockbacks . | . . . . . . Impact . | . . . . . . Kinetic . | . . . . . . Secondary . | . . . . . . Self-Inflicted Damage . | . . . . . . Shots . | . . . . . . Rammed . | . . . . . . Targets Rammed . | . . . . . . Kicked . | . . . . . . Crushed . | . . . . . . Highest Temperature 138 | . . . 23 . 138 Average Temperature 34 | . . . 6 . 48 Received Heat Transfer 504 | . . 36 279 33 156 Siege Activations . | . . . . . . Martial Activations . | . . . . . . Shielding Activations . | . . . . . . Robots Disrupted . | . . . . . . Combat Hostiles . | . . . . . . Robots Corrupted . | . . . . . . Combat Hostiles . | . . . . . . Parts Fried . | . . . . . . Impact Corruptions . | . . . . . . Robots Melted . | . . . . . . Combat Hostiles . | . . . . . . Parts Melted . | . . . . . . Heat Transferred . | . . . . . . Parts Sabotaged . | . . . . . . Parts Stolen . | . . . . . . Parts Stripped . | . . . . . . Power Chain Reactions . | . . . . . . Alert | -11 -10 -10 -8 -8 -8 ------- Run | Yrd Mat Sub Mat Gar Mat Maximum Alert Level . | . . . . . . Low Security (%) 100 | 100 100 . 100 100 100 Level 1 . | . . . . . . Level 2 . | . . . . . . Level 3 . | . . . . . . Level 4 . | . . . . . . Level 5 . | . . . . . . High Security . | . . . . . . Max Security . | . . . . . . Peak Influence 160 | . . . 85 93 160 Initial 48 | . . . . 48 40 Average 45 | . . . 45 61 66 Influence Increases 575 | . . . 225 45 305 Destroy 0b10 Robot/C 220 | . . . 140 . 80 Destroy Leader 50 | . . . 40 . 10 Successful Hack 5 | . . . . . 5 Partial Spotted 45 | . . . . 30 15 Lose Combat Pursuer 255 | . . . 45 15 195 Influence Decreases 490 | . . . 150 37 303 Entered New Map 70 | . . . . 27 43 Time Decay 190 | . . . 80 . 110 Lost Part 230 | . . . 70 10 150 Squads Dispatched 2 | . . . 1 . 1 Investigation . | . . . . . . Extermination . | . . . . . . Reinforcement 1 | . . . . . 1 Assault . | . . . . . . Garrison 1 | . . . 1 . . Intercept . | . . . . . . Searches Triggered . | . . . . . . Construction Impeded . | . . . . . . Haulers Reinforced . | . . . . . . Active Scanning Responses . | . . . . . . Cargo Convoy Interrupts . | . . . . . . Stealth | -11 -10 -10 -8 -8 -8 --------- Run | Yrd Mat Sub Mat Gar Mat Distress Signals 2 | . . . 1 . 1 Communications Jammed . | . . . . . . Distress Signals . | . . . . . . Times Spotted 53 | . 3 2 10 8 30 Peak Tracking Total 14 | . 3 2 5 8 14 Tactical Retreats 8 | . . . 3 1 4 Traps | -11 -10 -10 -8 -8 -8 ------- Run | Yrd Mat Sub Mat Gar Mat Traps Triggered 3 | . . . . 3 . Indirectly . | . . . . . . Trap Hack Attempts . | . . . . . . Triggered . | . . . . . . Disarmed . | . . . . . . Reprogrammed . | . . . . . . Reused . | . . . . . . Traps Extracted . | . . . . . . Installed . | . . . . . . Triggered . | . . . . . . Machines | -11 -10 -10 -8 -8 -8 ---------- Run | Yrd Mat Sub Mat Gar Mat Machines Disabled . | . . . . . . Max in Single Turn . | . . . . . . Machines Repaired . | . . . . . . Machines Dismantled . | . . . . . . Machines Sabotaged . | . . . . . . Overloaded Fab Kills . | . . . . . . Hacking | -11 -10 -10 -8 -8 -8 --------- Run | Yrd Mat Sub Mat Gar Mat Machines Accessed 4 | . 1 . 2 . 1 Terminals 2 | . . . 1 . 1 Fabricators . | . . . . . . Repair Stations . | . . . . . . Recycling Units 1 | . 1 . . . . Scanalyzers . | . . . . . . Garrison Access 1 | . . . 1 . . Total Hacks 8 | . 1 . 2 . 5 Successful 4 | . 1 . 2 . 1 Failed 4 | . . . . . 4 Catastrophic . | . . . . . . Database Lockouts . | . . . . . . Manual . | . . . . . . Terminals 6 | . . . 1 . 5 Fabricators . | . . . . . . Repair Stations . | . . . . . . Recycling Units 1 | . 1 . . . . Scanalyzers . | . . . . . . Garrison Access 1 | . . . 1 . . Terminal Hacks 2 | . . . 1 . 1 Record 1 | . . . 1 . . Prototype ID Bank 1 | . . . . . 1 Fabricator Hacks . | . . . . . . Repair Station Hacks . | . . . . . . Recycling Unit Hacks 1 | . 1 . . . . Report Inventory 1 | . 1 . . . . Scanalyzer . | . . . . . . Garrison Access Hacks 1 | . . . 1 . . Unlock Access 1 | . . . 1 . . Unauthorized Hacks . | . . . . . . Terminals . | . . . . . . Fabricators . | . . . . . . Repair Stations . | . . . . . . Recycling Units . | . . . . . . Scanalyzers . | . . . . . . Garrison Access . | . . . . . . Data Cores Recovered . | . . . . . . Used . | . . . . . . Hacking Detections 2 | . . . 1 . 1 Full Trace Events 1 | . . . . . 1 Feedback Events . | . . . . . . Feedback Blocked . | . . . . . . Robot Schematics Acquired . | . . . . . . Robots Built . | . . . . . . Authchips . | . . . . . . Time . | . . . . . . Total Robot Build Rating . | . . . . . . Part Schematics Acquired . | . . . . . . Parts Built . | . . . . . . Authchips . | . . . . . . Time . | . . . . . . Total Part Build Rating . | . . . . . . Part Studies Acquired . | . . . . . . Parts Repaired . | . . . . . . Time . | . . . . . . Parts Recycled . | . . . . . . Recycled Matter . | . . . . . . Retrieved Matter . | . . . . . . Retrieved Components . | . . . . . . Parts Scanalyzed . | . . . . . . Part Schematics Acquired . | . . . . . . Parts Damaged . | . . . . . . Bothacking | -11 -10 -10 -8 -8 -8 ------------ Run | Yrd Mat Sub Mat Gar Mat Used RIF Installer 1 | . . . . 1 . Robots Hacked . | . . . . . . Non-combat . | . . . . . . Combat . | . . . . . . Robot Hacks Applied . | . . . . . . Relay Couplers Released . | . . . . . . Fabnet Peak Effective % . | . . . . . . Robots Rewired . | . . . . . . Allies Hacked . | . . . . . . Hacks Repelled . | . . . . . . Allies | -11 -10 -10 -8 -8 -8 -------- Run | Yrd Mat Sub Mat Gar Mat Total Allies . | . . . . . . Largest Group . | . . . . . . Highest-Rated Group . | . . . . . . Highest-Rated Ally . | . . . . . . Total Orders . | . . . . . . Ally Attacks . | . . . . . . Total Damage . | . . . . . . Kills . | . . . . . . Allies Corrupted . | . . . . . . Allies Melted . | . . . . . . Intel | -11 -10 -10 -8 -8 -8 ------- Run | Yrd Mat Sub Mat Gar Mat Active Infowar (turns) 296 | . 50 117 79 . 50 Terrain 234 | . 50 117 67 . . Structural 62 | . . . 12 . 50 Robot Analysis Total . | . . . . . . Derelict Logs Recovered . | . . . . . . Drone Launches . | . . . . . . Drone Recoveries . | . . . . . . Exploration | -11 -10 -10 -8 -8 -8 ------------- Run | Yrd Mat Sub Mat Gar Mat Turns Passed 766 | 55 88 117 192 66 248 Spaces Moved 1040 | 29 85 84 243 159 440 Core 2 | 2 . . . . . Treads 55 | 27 15 . . . 13 Legs . | . . . . . . Wheels . | . . . . . . Hover . | . . . . . . Flight 983 | . 70 84 243 159 427 Fastest Speed 26 | 50 37 37 27 27 26 Average Speed 43 | 152 58 107 29 27 35 Slowest Speed 360 | 160 160 360 117 29 240 Overloaded Moves . | . . . . . . Propulsion Burnouts . | . . . . . . Robots Hopped 6 | . 1 . 4 . 1 Potential Cave-ins . | . . . . . . Cave-ins Triggered . | . . . . . . Exploration Rate (%) 22 | 4 15 10 25 34 47 Regions Visited 5 Branch Regions 1 Pre-discovered Areas . | . . . . . . Known Exits Taken 1 | . . . 1 . . Unknown Exits Taken 3 | 1 1 1 . . . Scrap Searched . | . . . . . . Spaces Dug . | . . . . . . Terrain Destroyed . | . . . . . . Melee . | . . . . . . Projectile . | . . . . . . AOE . | . . . . . . Terrain Rammed . | . . . . . . Walls Destroyed . | . . . . . . Machines Disabled . | . . . . . . Actions | -11 -10 -10 -8 -8 -8 --------- Run | Yrd Mat Sub Mat Gar Mat Total 1257 | 38 120 98 317 180 504 Wait 28 | . 25 . . . 3 Move 1022 | 28 82 83 234 157 438 Hop 6 | . 1 . 4 . 1 Pick Up 18 | 4 5 . 2 . 7 Fast Attach 26 | 4 1 1 10 . 10 Attach 16 | 2 . 1 6 . 7 Detach 4 | . . 1 2 . 1 Swap 14 | . 3 3 5 . 3 Drop 22 | . 3 3 7 . 9 Fire 78 | . . 6 47 . 25 Melee . | . . . . . . Ram . | . . . . . . Kick . | . . . . . . Crush . | . . . . . . Escape Stasis 23 | . . . . 23 . Rewire . | . . . . . . Trap . | . . . . . . Miscellaneous . | . . . . . . Route ------- -11/Scrapyard -10/Materials -10/Subcaves -8/Materials -8/Garrison -8/Materials History --------- Turn | Location | Event 10 | -11/Scrapyard | Discovered new exit (range 15) 56 | -11/Scrapyard | Entered Materials 124 | -10/Materials | Discovered new exit (range 5) 144 | -10/Materials | Entered Subcaves 154 | -10/Subcaves | Shifting Twisted Machinery released Hvy. Battle Rifle 164 | -10/Subcaves | Shifting Twisted Machinery released Mak. Kinetic Plating 207 | -10/Subcaves | Discovered new exit (range 13) 222 | -10/Subcaves | Ambushed by Subdwellers from Twisted Machinery 261 | -10/Subcaves | Entered Materials 261 | -8/Materials | Evolved 4 slots: Power x1, Propulsion x3 396 | -8/Materials | Garrison activated, responded to threat 453 | -8/Materials | Identified exit to Garrison 453 | -8/Materials | Entered Garrison 464 | -8/Garrison | Installed Relay Interface Framework 466 | -8/Garrison | Lost 3 parts (1p2n) 469 | -8/Garrison | Triggered checkpoint 491 | -8/Garrison | Triggered checkpoint 493 | -8/Garrison | Triggered checkpoint 499 | -8/Garrison | Triggered checkpoint 516 | -8/Garrison | Discovered new exit (range 10) 519 | -8/Garrison | Entered Materials 711 | -8/Materials | Core integrity fell below 50% 755 | -8/Materials | Core integrity fell below 20% 767 | -8/Materials | Destroyed by G-47 Trooper with Particle Gun Last Messages --------------- 00733_ M-13 Machinist fits Backup Propulsion I on S-10 Pest. 00734_ S-10 Pest destroyed. 00735_ K-01 Serf collects debris. 00735_ Penetrated by Slug. 00735_ M-13 Machinist repairs S-10 Pest Flight Unit. 00738_ Penetrated by Slug. 00738_ Imp. Treads destroyed. 00740_ Critical hit (Burn: +37). 00742_ Penetrated by Slug. 00744_ Lgt. Assault Rifle destroyed. 00745_ Imp. Treads destroyed. 00747_ Structural Scanner destroyed. 00748_ Rnf. Deuterium Engine destroyed. 00751_ Penetrated by Slug. 00752_ Acquired 24 matter. 00752_ Rnf. Deuterium Engine destroyed. 00754_ Penetrated by Slug. 00766_ Lgt. Assault Rifle destroyed. Map ----- +----------------------------------------------------+ | ????????????????????????????????????????????? | | ????????????????????????????????????????????? | | ????????????????????????????????????????????? | | ????????????????????????????????????????????? | | ????????????????????????????????????????????? | | ????????????????????????????????????????????? | | ????????????????????????????????????????????? | | ????????????????????????????????????????????? | | ????????????????????????????????????????????? | | ???????????????????????????? ?????????????? | | ???????????????????????????# #????????????? | | ????????????? ?????????????# #????????????? | | ?????????#### #? ??????????# #????????????? | | ????????# # ????????# #????????????? | | ????????# # ?????????# #????????????? | | ????????# / ??????????# #????????????? | | ????????# # ???????????# #????????????? | | ######### /????????????# #????????????? | | # #????????????# #????????????? | | # #????????????# #????????????? | | # #????????????# #######??????? | | # #????????????# ##########???? | | " """ # #???? ### ##???? | | " """ # #????######### ##???? | | " """ / #????##= =* hg ##???? | | # #????## s=s@g# ##???? | | " """ # #????##= [=% # ##???? | | " """ # #????## = # ##???? | | " """ # #????## # !==#????? | | # #????## # !==#????? | | ##+###### #????######### != ####?? | | ############## # #?? | | # #?? | | #?? | | # ##?? | | " ###??? | | ######### !! T #????? | | ????????# ################ != " #????? | | ????????# #??????????????# #????? | | ????????# #??????????????# #????? | | ??????? #?????########?# ###????? | | ?????? #?????# ! ### #??????? | | ????? ??????# + #??????? | | ????? ??????# """### #??????? | | ????? ??????# R"#?# ####???? | | ???????##+####??????# """#?# #???? | | ????????????????????# #?# #???? | | ????????????????????#+##+##### #???? | | ????????????????????# #???? | | ????????????????#####+## ##+##+###?? | +----------------------------------------------------+ Best States ------------- Heat Dissipation 51 Energy Generation 27 Energy Capacity 480 Matter Stores 290 Matter Capacity 300 Sight Range 16 Terrain Scan Range 14 Terrain Scan Density 10 Additional Mass Support 6 Armor Coverage 100 Resistance: KI 10 Evasion (%) 64 Recoil Reduction 3 Item Schematics ----------------- None Robot Schematics ------------------ None Fabricated ------------ Nothing Repaired ---------- Nothing Studied --------- None Alien Tech Used ----------------- None Achievements -------------- Join The Dark Side Challenges ------------ None Game ------ Seed FocalMiniNeutralizer Manual? 0 Play Time 00:23:15 Cumulative 13.0 hours Start 2026.01.02 @ 22:57:12 End 2026.01.02 @ 23:43:47 Sessions 1 Manual Loads 0 Difficulty Rogue Special Mode None Game No. 24 Rogue 24 Adventurer 0 Explorer 0 Win Type - Total 0 Types 0/0/0/0/0/0/0/0/0/0 Lore% 8 Gallery% 14 Achievement% 11 Wizard Run 0 Options --------- Layout 1 ASCII 0 Keyboard 0 Movement Mouse Keybinds 0 Fullscreen 2 Font 48/Smallcaps Map View 50x35 Zoom Use 1% Tactical HUD 1 Map Filters NONE Filters NONE Steam 1 RUN: 1ada359e-f7da-4735-ae5a-a2f02b79004a